{"text_format":"1","workbook":"xlsx","n_sheets":4,"sheets":["Volledige vergoeding","Info ivm macro's","Etc","Bedragen"],"not_rendered":{"charts":0,"images":0,"macros":1,"external_links":0,"defined_names":93,"comments":0,"pivot_tables":0},"unopened":[],"bounds":{"document_bytes":16777216,"sheet_cells":100000,"rows_first":2000,"rows_last":500,"rows_between":2000,"halvings":0,"cell_chars":16384,"cell_head_chars":4096},"cells_cut":0,"cells_raw":0,"read":"whole","date_system":"1900"}

{"sheet":"Volledige vergoeding","index":0,"n_rows":176,"n_cols":12,"rows_kept":176,"cut":false,"hidden":false,"merged":[[173,0,173,9],[175,0,175,9],[61,2,61,5],[63,0,63,10],[140,0,140,9],[141,0,141,9],[142,0,142,9],[145,0,145,11],[147,0,147,2],[149,0,149,2],[76,0,76,9],[77,2,79,10],[80,0,80,9],[81,2,83,10],[84,0,84,9],[64,0,64,9],[65,2,67,10],[68,0,68,9],[69,2,71,10],[72,0,72,9],[73,2,75,10],[85,2,87,10],[100,0,100,9],[104,0,104,9],[15,2,15,10],[16,0,16,9],[17,2,17,10],[18,0,18,10],[9,0,9,8],[9,9,9,10],[12,0,12,9],[0,0,0,10],[5,0,5,4],[5,5,5,10],[6,0,6,4],[6,5,6,10],[7,0,7,8],[7,9,7,10],[13,2,13,10],[14,0,14,9],[3,8,3,10],[8,9,8,10],[1,0,1,10],[2,0,2,10],[3,0,3,7],[8,0,8,8],[10,0,10,10],[11,0,11,9],[25,2,25,10],[28,0,28,9],[29,2,29,10],[30,0,30,9],[31,2,31,10],[32,0,32,9],[19,1,19,9],[20,1,20,9],[21,2,21,10],[22,0,22,9],[23,2,23,10],[24,0,24,9],[26,0,26,9],[27,2,27,10],[39,2,39,10],[40,0,40,9],[41,2,41,10],[42,0,42,9],[43,2,43,10],[44,0,44,9],[33,2,33,10],[34,0,34,9],[35,2,35,10],[36,0,36,9],[37,2,37,10],[38,0,38,9],[53,0,53,6],[53,7,53,9],[55,0,55,9],[59,2,59,5],[60,2,60,5],[45,2,45,10],[46,0,46,9],[47,2,47,10],[48,0,48,9],[49,2,49,10],[50,0,50,9],[51,0,51,9],[52,0,52,9],[54,0,54,10],[57,0,57,10],[58,0,58,10],[108,0,108,9],[88,0,88,9],[92,0,92,9],[96,0,96,9],[89,2,91,10],[93,2,95,10],[97,2,99,10],[101,2,103,10],[105,2,107,10],[109,2,111,10],[124,0,124,9],[125,2,127,10],[128,0,128,9],[129,2,131,10],[132,0,132,9],[133,2,135,10],[112,0,112,9],[116,0,116,9],[120,0,120,9],[121,2,123,10],[117,2,119,10],[113,2,115,10],[148,3,148,5],[148,7,148,9],[149,3,149,9],[150,3,150,5],[150,7,150,9],[151,3,151,9],[136,0,136,9],[137,2,139,10],[143,0,143,9],[146,3,146,5],[146,7,146,9],[147,3,147,9],[151,0,151,2],[169,2,171,10],[163,2,165,10],[152,3,152,5],[152,7,152,9],[153,3,153,9],[155,0,155,9],[162,0,162,9],[168,9,168,10],[168,1,168,8],[153,0,153,2],[156,0,156,7],[158,0,158,9],[160,0,160,10],[167,0,167,9]]}
["VERZOEKSCHRIFT VOOR HET BEKOMEN VAN EEN VOLLEDIGE VERGOEDING EN UITZONDERLIJKE KOSTEN BEWIND"]
["Wet van 8 november 2023 betreffende het statuut van bewindvoerder over een beschermde persoon (BS 30/11/2023)."]
["Art. 497/5 oud BW."]
["KB van 18 mei 2024 in uitvoering van de wet van 8 november 2023 (BS 14 juni 2024).",null,null,null,null,null,null,null,"Klik hier voor bijkomende info"]
[]
["Naam beschermde persoon:"]
["Naam bewindvoerder:"]
["R-nummer:"]
["Verslagperiode (vul het aantal begonnen maanden in of 12 voor een volledig jaar)"]
["Datum verslag:"]
[]
["1. Verzoek tot het bekomen van de forfaitaire vergoeding. ",null,null,null,null,null,null,null,null,null,"Bedrag"]
["Inkomsten uit arbeid:"]
[null,"Motivering:"]
["Pensioenen (gewone, brug- en aanvullende):"]
[null,"Motivering:"]
["Inkomsten uit intellectuele rechten:"]
[null,"Motivering:"]
["Inkomstenbelastingen (= correctie op reeds betaalde/ingehouden belastingen):"]
[null,"Ontvangen inkomstenbelastingen (teruggaven):"]
[null,"Betaalde inkomstenbelastingen (kleurt rood, omdat dit steeds een minbedrag betreft):"]
[null,"Motivering:"]
["Inkomsten uit huur en pacht:"]
[null,"Motivering:"]
["Persoonlijke onderhoudsuitkeringen:"]
[null,"Motivering:"]
["Schadevergoeding wegens inkomstenverlies:"]
[null,"Motivering:"]
["Interesten van tak 21-verzekeringen:"]
[null,"Motivering:"]
["Opbrengsten van roerende kapitalen:"]
[null,"Motivering:"]
["Kinder- of wezenbijslag van de beschermde persoon (niet van zijn kinderen):"]
[null,"Motivering:"]
["Vervangingsinkomsten:"]
[null,"Motivering:"]
["Leefloon:"]
[null,"Motivering:"]
["Integratietegemoetkoming, zorgbudget en tegemoetkoming voor gehandicapten:"]
[null,"Motivering:"]
["Tegemoetkomingen aan ouderen:"]
[null,"Motivering:"]
["Uitkeringen van een zorgverzekering:"]
[null,"Motivering:"]
["Leefloon voor studenten en andere studietoelagen:"]
[null,"Motivering:"]
["Aanvullend pensioen uit een verzekering conform art. 1, eerste lid, 18°:"]
[null,"Motivering:"]
["Meerwaarde op de verkoop van een onroerend goed conform art. 1, eerste lid, 19°:"]
[null,"Motivering:"]
["Totaal inkomsten:",null,null,null,null,null,null,null,null,null,{"$f":"SUM(K13,K15,K17,K20,K23,K25,K27,K29,K31,K33,K35,K37,K39,K41,K43,K45,K47,K49) - ABS(K21)","v":0}]
["Subtotaal forfaitaire vergoeding",null,null,null,null,null,null,null,null,null,{"$f":"IF(VOLLEDIG_JAAR, IF(K51<=BEDRAG_JAARLIJKS_PLAFOND_FORFAITAIRE_VERGOEDING,K51/12,IF(AND(K51>BEDRAG_JAARLIJKS_PLAFOND_FORFAITAIRE_VERGOEDING,K51<=BEDRAG_BIJKOMENDE_FORFAITAIRE_VERGOEDING),BEDRAG_FORFAITAIRE_VERGOEDING,IF(K51>BEDRAG_BIJKOMENDE_FORFAITAIRE_VERGOEDING,((K51-BEDRAG_BIJKOMENDE_FORFAITAIRE_VERGOEDING)*5/100)+BEDRAG_FORFAITAIRE_VERGOEDING,\"\"))), 0)","v":0}]
["Subtotaal pro rata vergoeding",null,null,null,null,null,null,null,null,null,{"$f":"IF(AND(ONVOLLEDIG_JAAR, AANTAL_MAANDEN>0), MIN(MAX(AANTAL_MAANDEN/12*BEDRAG_FORFAITAIRE_VERGOEDING, K51*0.05), K51/AANTAL_MAANDEN),0)","v":0}]
["Eerste jaarverslag na start bewind? Art. 9, §1, vierde lid wet 08/11/2023:",null,null,null,null,null,null,null,null,null,{"$f":"IF(EERSTE_JV,EERSTE_JV_BEDRAG,0)","v":0}]
[]
["FORFAITAIRE VERGOEDING:",null,null,null,null,null,null,null,null,null,{"$f":"SUM(K52:K54)","v":0}]
[]
["Verschillende bewindvoerders over de persoon of over de goederen?"]
["Zo ja, formuleer hierna een voorstel van verdeling tussen de bewindvoerders:"]
[null,"Voorstel:","bewindvoerder over de goederen:",null,null,null,null,"%",null,null,{"$f":"(G60/100*K56)","v":0}]
[null,null,"bewindvoerder over de persoon:",null,null,null,null,"%",null,null,{"$f":"(G61/100*K56)","v":0}]
[null,null,"totaal percentage (max. 100%):",null,null,null,{"$f":"SUM(G60:G61)","v":0},"%"]
[]
["2. Verzoek tot het bekomen van vergoeding buitengewone ambtsverrichtingen. "]
["Indienen gemotiveerd verzoekschrift tot machtiging:",null,null,null,null,null,null,null,null,null,null,"minuten"]
[null,"Motivering:"]
[]
[]
["Beheers- en beschikkingsdaden die buitengewoon zijn:",null,null,null,null,null,null,null,null,null,null,"minuten"]
[null,"Motivering:"]
[]
[]
["Ontruiming van een pand:",null,null,null,null,null,null,null,null,null,null,"minuten"]
[null,"Motivering:"]
[]
[]
["Vertegenwoordiging in rechte als bewindvoerder, anders dan in het bewinddossier:",null,null,null,null,null,null,null,null,null,null,"minuten"]
[null,"Motivering:"]
[]
[]
["Administratieve procedure en aanvraag niet-eenvoudige machtiging:",null,null,null,null,null,null,null,null,null,null,"minuten"]
[null,"Motivering:"]
[]
[]
["Afhandeling nalatenschap of verdeling:",null,null,null,null,null,null,null,null,null,null,"minuten"]
[null,"Motivering:"]
[]
[]
["Opstellen of onderhandeling van een contract of opvolging contract met bijzondere werklast:",null,null,null,null,null,null,null,null,null,null,"minuten"]
[null,"Motivering:"]
[]
[]
["Ondersteuning bij legaat of schenking:",null,null,null,null,null,null,null,null,null,null,"minuten"]
[null,"Motivering:"]
[]
[]
["Aanbesteding voor bouwwerk of renovatie of opvolging ervan:",null,null,null,null,null,null,null,null,null,null,"minuten"]
[null,"Motivering:"]
[]
[]
["Plaatsing of verhuis van beschermde persoon of teruggave huurgoed:",null,null,null,null,null,null,null,null,null,null,"minuten"]
[null,"Motivering:"]
[]
[]
["Bijkomend inhoudelijk overleg met zorgteam of derde:",null,null,null,null,null,null,null,null,null,null,"minuten"]
[null,"Motivering:"]
[]
[]
["Onderzoek fiscale situatie m.u.v. de belastingaangifte:",null,null,null,null,null,null,null,null,null,null,"minuten"]
[null,"Motivering:"]
[]
[]
["Beheer en opvolging van sociale uitkeringen zoals TPH:",null,null,null,null,null,null,null,null,null,null,"minuten"]
[null,"Motivering:"]
[]
[]
["Aanstellen advocaat, curator, sekwester of voorlopige bewindvoerder:",null,null,null,null,null,null,null,null,null,null,"minuten"]
[null,"Motivering:"]
[]
[]
["Afsluiten bewinddossier:",null,null,null,null,null,null,null,null,null,null,"minuten"]
[null,"Motivering:"]
[]
[]
["Vertegenwoordiging bij fiscale controle:",null,null,null,null,null,null,null,null,null,null,"minuten"]
[null,"Motivering:"]
[]
[]
["Opmaak minnelijk afbetalingsplan bij aanvang bewind:",null,null,null,null,null,null,null,null,null,null,"minuten"]
[null,"Motivering:"]
[]
[]
["Ambtsverrichting die normale werklast in aanzienlijke mate overstijgt:",null,null,null,null,null,null,null,null,null,null,"minuten"]
[null,"Motivering:"]
[]
[]
["Andere:",null,null,null,null,null,null,null,null,null,null,"minuten"]
[null,"Motivering:"]
[]
[]
["Totaal aantal minuten:",null,null,null,null,null,null,null,null,null,{"$f":"SUM(K137,K133,K129,K125,K121,K117,K113,K109,K105,K101,K97,K93,K89,K85,K81,K77,K73,K69,K65)","v":0},"minuten"]
["Omgerekend naar uren:",null,null,null,null,null,null,null,null,null,{"$f":"K141/60","v":0},"uren"]
[{"$f":"_xlfn.CONCAT(\"Gevraagde uurvergoeding (hoogstens \", BEDRAG_PLAFOND_UURVERGOEDING_BUITENGEWONE_AMBTSVERRICHTINGEN, \" euro/uur, art. 497/5, § 2, derde lid oud BW):\")","v":"Gevraagde uurvergoeding (hoogstens 129,95 euro/uur, art. 497/5, § 2, derde lid oud BW):"},null,null,null,null,null,null,null,null,null,null,"per uur"]
["Vergoeding buitengewone ambtsverrichtingen:",null,null,null,null,null,null,null,null,null,{"$f":"K142*K143","v":0}]
[]
["Verplaatsingen gedaan met betrekking tot de buitengewone ambtsverrichtingen (art. 9 §2, vijfde lid Wet 8 november 2023):"]
["Locatie 1:",null,"van:",null,null,null,"naar:",null,null,null,null,"km"]
["Motivering (# in detail):"]
["Locatie 2:",null,"van:",null,null,null,"naar:",null,null,null,null,"km"]
["Motivering (# in detail):"]
["Locatie 3:",null,"van:",null,null,null,"naar:",null,null,null,null,"km"]
["Motivering (# in detail):"]
["Locatie 4:",null,"van:",null,null,null,"naar:",null,null,null,null,"km"]
["Motivering (# in detail):"]
[]
["Totaal aantal kilometers:",null,null,null,null,null,null,null,null,null,{"$f":"SUM(K147,K149,K151,K153)","v":0},"km"]
["Verplaatsingsvergoeding (art. 74 KB 13 juli 2017)",null,null,null,null,null,null,null,"per km:",0.42899999999999999,{"$f":"K156*J157","v":0}]
[]
["VERGOEDING BUITENGEWONE AMBTSVERRICHTINGEN (INCL. VERPLAATSINGSKOSTEN):",null,null,null,null,null,null,null,null,null,{"$f":"SUM(K144, K157)","v":0}]
[]
["3. Verzoek tot het bekomen van vergoeding uitzonderlijke kosten."]
[]
["Kosten als uitzonderlijk te beschouwen en waarvoor verantwoordingsstukken worden gevoegd:",null,null,null,null,null,null,null,null,null,0]
[null,"Motivering:"]
[]
[]
[]
[{"$f":"_xlfn.CONCAT(\"Indien meer dan \", BEDRAG_VERGOEDING_UITZONDERLIJKE_KOSTEN, \" euro:\")","v":"Indien meer dan 504,26 euro:"},null,null,null,null,null,null,null,null,null,0]
[null,"Datum van machtiging:"]
[null,"Motivering:"]
[]
[]
[]
["VERGOEDING UITZONDERLIJKE KOSTEN",null,null,null,null,null,null,null,null,null,{"$f":"SUM(K163, K168)","v":0}]
[]
["ALGEMEEN TOTAAL:",null,null,null,null,null,null,null,null,null,{"$f":"SUM(K174,K159,K56)","v":0}]

{"sheet":"Info ivm macro's","index":1,"n_rows":12,"n_cols":2,"rows_kept":12,"cut":false,"hidden":false,"merged":[]}
[]
[null,"Om dit bestand correct te kunnen gebruiken, is het noodzakelijk dat de ingebouwde macro's kunnen worden uitgevoerd."]
[null,"Het lijkt erop dat deze macro's niet kunnen worden uitgevoerd."]
[]
[null,"Gebruikt u Excel in de browser (webversie)?"]
[null,"Macro’s werken daar niet. Download het bestand en open het in de desktopversie van Excel."]
[]
[null,"Gebruikt u al de desktopversie van Excel?"]
[null,"U ziet mogelijk een gele balk bovenaan met de melding “Macro’s zijn uitgeschakeld”. Andere (vergelijkbare) meldingen zijn eveneens mogelijk."]
[null,"Klik in dat geval op de knop “Inhoud inschakelen” aan de rechterkant van die melding."]
[]
[null,"Klik hier voor een stapsgewijze uitleg indien u de knop “Inhoud inschakelen” niet ziet."]

{"sheet":"Etc","index":2,"n_rows":16,"n_cols":2,"rows_kept":16,"cut":false,"hidden":true,"merged":[]}
[false,129.94999999999999]
[]
[{"$f":"OR(AANTAL_MAANDEN=\"\", AANTAL_MAANDEN=12)","v":true},{"$f":"NOT(VOLLEDIG_JAAR)","v":false}]
[]
[12]
[11]
[10]
[9]
[8]
[7]
[6]
[5]
[4]
[3]
[2]
[1]

{"sheet":"Bedragen","index":3,"n_rows":8,"n_cols":2,"rows_kept":8,"cut":false,"hidden":true,"merged":[]}
["Bedrag","Omschrijving"]
[1039.5999999999999,"Forfaitaire vergoeding. (art. 497/5 § 1 B.W.)"]
[12475.2,"Jaarlijks plafond forfaitaire vergoeding."]
[20791.95,"Een bijkomende forfaitaire vergoeding van 5% van de jaarlijkse inkomsten van de beschermde persoon boven dit bedrag kan toegekend worden. (art. 497/5 § 1 B.W.)"]
[129.94999999999999,"Plafond uurvergoeding voor buitengewone ambtsverrichtingen. (art. 497/5 § 2 B.W.)"]
[0.42899999999999999,"Verplaatsingsvergoeding. (KB 13 juli 2017 art. 74)"]
[504.26,"Vergoeding uitzonderlijke kosten. (KB 18 mei 2024 art. 3 § 1)"]
[129.94999999999999,"Vergoeding eerste jaarverslag na start bewind. (art. 9 §1 vierde lid wet 08/11/2023)"]